[Event "LEM Niedersachsen-Meister 2025"]
[Site "Verden"]
[Date "2025.01.02"]
[Round "2.12"]
[White "Kieselbach, Jannik"]
[Black "Bargsten, Justus"]
[Result "1/2-1/2"]
[ECO "C26"]
[WhiteElo "1979"]
[BlackElo "2228"]
[Annotator "TA"]
[PlyCount "158"]
[EventDate "2024.12.27"]
[EventType "swiss"]
[EventCountry "GER"]
[SourceTitle "playchess.com"]
[Source "ChessBase"]
[SourceQuality "1"]
[TimeControl "40/5400+30:1800+30"]

{[%evp 28,157,-46,-95,-121,-128,-109,-147,-119,-173,-110,-124,-81,-87,-87,-102,-106,-102,-66,-55,-70,-128,-120,-132,-131,-268,-266,-273,-274,-257,-261,-264,-264,-278,-271,-320,-312,-373,-272,-275,-145,-147,-156,-234,-231,-236,-192,-195,-160,-205,-212,-206,-132,-132,-131,-134,-129,-124,-122,-154,-157,-173,-180,-158,-147,-187,-198,-187,-187,-192,-187,-202,-183,-192,-135,-170,-137,-116,-49,-80,-8,-8,-8,-8,-8,-8,0,0,0,0,0,0,0,0,0,0,0,0,0,0,0,0,0,0,0,0,0,0,0,0,0,0,0,0,0,0,0,0,0,0,0,0,0,0,0,0,0,0,0,0,0,0]} 1. e4 {[%emt 0:00:04]} e5 {[%emt 0:00:03]} 2. Nc3 {[%emt 0:01:32]} Nf6 {[%emt 0:00:06]} 3. g3 {[%emt 0:02:40]} c6 {[%emt 0:03:28]} 4. Bg2 {[%emt 0:08:53]} d5 {[%emt 0:00:28]} 5. exd5 {[%emt 0:03:53]} cxd5 {[%emt 0:00:05]} 6. Nge2 {[%emt 0:04:28]} Nc6 {[%emt 0:01:11]} 7. O-O {[%emt 0:03:15]} Bc5 {[%emt 0:02:12]} 8. d3 {[%emt 0:04:59]} h6 {[%emt 0:02:03]} 9. Na4 {[%emt 0:10:04]} Be7 {[%emt 0:01:08]} 10. d4 {[%emt 0:09:04]} e4 {[%emt 0:04:43]} 11. b3 {[%emt 0:11:29]} Bg4 {[%emt 0:01:19]} 12. Be3 {[%emt 0:04:55]} O-O {[%emt 0:06:06]} 13. Qd2 {[%emt 0:01:22]} Rc8 {[%emt 0:01:55]} 14. h3 {[%emt 0:08:07]} Bf5 {[%emt 0:00:46]} (14... Bf3 $17 15. c4 dxc4 16. Bxf3 (16. bxc4 $2 Bxe2 17. Qxe2 Nxd4 $19) 16... exf3) 15. Rfd1 {[%emt 0:01:39]} (15. c4 $15 {should be considered.}) 15... b6 $17 {[%emt 0:03:00]} 16. Kh2 {[%emt 0:06:02]} Qd7 {[%emt 0:02:04]} 17. Bf1 {[%emt 0:02:15]} Na5 {[%emt 0:02:16]} 18. Ng1 {[%emt 0:05:41]} (18. Nc5 $17 Qc7 (18... bxc5 19. Qxa5 c4 20. Rab1 $17) 19. Bf4) 18... Nh7 {[%emt 0:00:48]} (18... Nc4 $19 19. bxc4 Qxa4) 19. Ba6 {[%emt 0:02:27]} Rc7 {[%emt 0:01:55]} 20. Bf4 {[%emt 0:00:27]} Bd6 {[%emt 0:00:09]} 21. Bxd6 {[%emt 0:01:11]} Qxd6 {[%emt 0:00:14]} 22. Rac1 {[%emt 0:02:08]} Be6 {[%emt 0:10:55]} 23. c4 {[%emt 0:03:53]} dxc4 {[%emt 0:01:12]} 24. d5 {[%emt 0:01:11]} ({White should try} 24. Nc3 $15 e3 (24... cxb3 25. Nb5 $11) 25. Qxe3 cxb3 26. d5) 24... Bd7 $17 {[%emt 0:00:56]} 25. Nc3 {[%emt 0:00:35]} f5 {[%emt 0:01:30]} (25... cxb3 26. Nxe4 Qe5 27. f4 Rxc1 28. fxe5 $16) 26. Bxc4 {[%emt 0:00:32]} (26. bxc4 $17 Nxc4 27. Nxe4 fxe4 28. Bxc4) 26... Nxc4 $19 {[%emt 0:00:21]} 27. bxc4 {[%emt 0:00:04]} Rxc4 {[%emt 0:00:09]} 28. Nce2 {[%emt 0:00:48]} Rfc8 {[%emt 0:01:14]} 29. Rxc4 {[%emt 0:00:30]} Rxc4 {[%emt 0:00:02]} 30. Qb2 {[%emt 0:00:46]} Qc5 {[%emt 0:01:20]} 31. Kg2 {[%emt 0:00:18]} Nf6 {[%emt 0:01:14]} 32. Qe5 {[%emt 0:00:13]} e3 {[%emt 0:02:45]} 33. Qxe3 {[%emt 0:00:37]} Nxd5 {[%emt 0:00:53]} (33... Qxe3 $19 34. fxe3 Rc2) 34. Qxc5 {[%emt 0:00:48]} Rxc5 {[%emt 0:00:02]} 35. Kf1 {[%emt 0:00:39]} (35. Rd2 $17 {is a better defense.}) 35... Bb5 $19 {[%emt 0:00:40]} 36. Ke1 {[%emt 0:00:19]} Nc3 {[%emt 0:01:13]} 37. Rd8+ {[%emt 0:00:18]} Kf7 {[%emt 0:01:14]} 38. Nxc3 {[%emt 0:00:11]} Rxc3 {[%emt 0:00:09]} 39. Rd5 {[%emt 0:00:49]} Ke6 {[%emt 0:07:24]} 40. Rxb5 {[%emt 0:00:28]} Rc1+ {[%emt 0:00:00]} 41. Kd2 {[%emt 0:30:07]} Rxg1 {[%emt 0:29:38]} 42. Rb2 {[%emt 0:00:00]} g5 {[%emt 0:00:00]} 43. Rb4 {[%emt 0:00:00]} Ra1 {[%emt 0:00:00]} 44. a4 {[%emt 0:00:00]} Ra3 {[%emt 0:00:00]} 45. Ke2 {[%emt 0:00:00]} Kd6 {[%emt 0:00:00]} 46. h4 {[%emt 0:00:00]} g4 {[%emt 0:00:00]} 47. Rf4 {[%emt 0:00:00]} Ke5 {[%emt 0:00:00]} 48. Rb4 {[%emt 0:00:00]} h5 {[%emt 0:00:00]} 49. Rb5+ {[%emt 0:00:00]} Ke6 {[%emt 0:00:00]} 50. Rb4 {[%emt 0:00:00]} Kd6 {[%emt 0:00:00]} 51. Rf4 {[%emt 0:00:00]} Rf3 {[%emt 0:00:00]} 52. Rb4 {[%emt 0:00:00] [#]} (52. Rxf3 gxf3+ 53. Kxf3 Ke5 $19) 52... f4 {[%emt 0:00:00]} ({Black should try} 52... Rc3 $1 $17 {[%mdl 512]} 53. Rd4+ (53. Kd2 Rc5) 53... Ke6) 53. Rb5 $15 {[%emt 0:00:00] [#]} fxg3 {[%emt 0:00:00]} (53... Ra3 $1 $17 54. Rxh5 Ra2+ (54... Rxa4 55. Rh6+ Ke5 56. gxf4+ Rxf4 57. Rg6 $11) (54... fxg3 55. fxg3 Rxa4 56. Rg5 $15) 55. Ke1 fxg3 (55... Rxa4 56. gxf4 Rxf4 57. Rg5 $17) 56. fxg3 Rxa4) 54. fxg3 $11 {[%emt 0:00:00]} Ra3 {[%emt 0:00:00]} 55. Rxh5 {[%emt 0:00:00]} Rxa4 {[%emt 0:00:00]} 56. Rg5 {[%emt 0:00:00]} Ke6 {[%emt 0:00:00]} 57. Kd2 {[%emt 0:02:12]} Kf6 {[%emt 0:01:44]} 58. Kc2 {[%emt 0:00:20]} a6 {[%emt 0:01:11]} 59. Rg8 {[%emt 0:02:02]} a5 {[%emt 0:07:08]} 60. Rg5 {[%emt 0:04:19]} Rb4 {[%emt 0:01:16]} 61. Kc3 {[%emt 0:00:54]} b5 {[%emt 0:01:08]} 62. Rh5 {[%emt 0:01:20]} Rb1 {[%emt 0:10:45]} 63. Kc2 {[%emt 0:00:13]} Rb4 {[%emt 0:03:41]} 64. Kc3 $1 {[%emt 0:00:04]} Ke6 {[%emt 0:00:44]} 65. Rg5 {[%emt 0:00:05]} Kf6 {[%emt 0:01:47]} 66. Rh5 {[%emt 0:00:31]} Kg6 {[%emt 0:00:06]} 67. Rg5+ {[%emt 0:00:04]} Kh6 {[%emt 0:00:05]} 68. Rf5 {[%emt 0:00:24]} Rb1 {[%emt 0:00:25]} 69. Kc2 {[%emt 0:00:07]} Rg1 {[%emt 0:01:11]} 70. Rxb5 {[%emt 0:00:23]} Rxg3 {[%emt 0:00:11]} (70... a4 $5 71. Rb6+ $8 Kh7 $11) 71. Rxa5 {[%emt 0:00:19]} Rh3 {[%emt 0:00:06]} 72. Kd2 {[%emt 0:01:07]} Rxh4 {[%emt 0:00:37]} 73. Ke3 {[%emt 0:00:52]} Rh5 {[%emt 0:01:51]} 74. Rxh5+ {[%emt 0:00:17]} Kxh5 {[%emt 0:00:04]} 75. Kf2 {[%emt 0:00:05]} Kh4 {[%emt 0:00:08]} 76. Kg2 {[%emt 0:00:04]} g3 {[%emt 0:00:10]} 77. Kg1 {[%emt 0:00:11]} Kh3 {[%emt 0:00:27]} 78. Kh1 {[%emt 0:00:06]} g2+ {[%emt 0:00:10]} 79. Kg1 {[%emt 0:00:04]} Kg3 {[%emt 0:00:35]} 1/2-1/2

[Event "LEM Niedersachsen-Meister 2025"]
[Site "Verden"]
[Date "2025.01.02"]
[Round "2.13"]
[White "Schiller, Jan-Hendrik"]
[Black "Lichtmannecker, Daniel"]
[Result "0-1"]
[ECO "E08"]
[WhiteElo "1952"]
[BlackElo "2171"]
[Annotator "TA"]
[PlyCount "126"]
[EventDate "2024.12.27"]
[EventType "swiss"]
[EventCountry "GER"]
[SourceTitle "playchess.com"]
[Source "ChessBase"]
[SourceQuality "1"]
[TimeControl "40/5400+30:1800+30"]

{[%evp 17,126,17,22,-14,-11,-12,-6,-20,0,3,5,14,18,0,23,1,0,0,34,32,34,27,54,31,45,45,77,47,45,14,28,28,104,13,25,0,0,-14,0,-27,0,-13,0,0,0,-13,-1,-10,0,-17,-6,-25,-1,-33,12,-1,3,-11,55,54,77,-29,0,-22,-2,-37,0,0,6,8,18,-52,0,11,246,0,0,-5,-10,-12,-19,-10,-11,-8,-17,-67,-13,-16,250,239,456,132,112,-29991,-29992,-29992,-29993,-29993,-29994,-29994,-29995,-29995,-29996,-29996,-29997,-29997,-29998,-29998,-29998,-29998,-29999]} 1. d4 {[%emt 0:00:03]} Nf6 {[%emt 0:03:06]} 2. c4 {[%emt 0:00:21]} e6 {[%emt 0:00:08]} 3. Nf3 {[%emt 0:00:18]} d5 {[%emt 0:00:15]} 4. g3 {[%emt 0:00:20]} Bb4+ {[%emt 0:00:23]} 5. Bd2 {[%emt 0:00:26]} Be7 {[%emt 0:00:26]} 6. Bg2 {[%emt 0:02:08]} O-O {[%emt 0:01:45]} 7. O-O {[%emt 0:03:33]} Nbd7 {[%emt 0:00:16]} 8. Qc2 {[%emt 0:00:44]} Ne4 {[%emt 0:00:50]} 9. Bf4 {[%emt 0:01:53]} c6 {[%emt 0:03:10]} 10. Rc1 {[%emt 0:03:40]} g5 {[%emt 0:14:25]} 11. Bd2 {[%emt 0:05:29]} f5 {[%emt 0:14:53]} 12. Be1 {[%emt 0:06:03] The position is equal.} Bf6 {[%emt 0:06:49]} 13. e3 {[%emt 0:05:11]} Qe8 {[%emt 0:04:09]} 14. Nc3 {[%emt 0:08:07]} Nd6 {[%emt 0:01:16]} 15. Nd2 {[%emt 0:09:55]} Qh5 {[%emt 0:03:50]} 16. Bf3 {[%emt 0:02:59]} g4 {[%emt 0:03:08]} 17. Bg2 {[%emt 0:01:47]} Bg7 {[%emt 0:08:51]} 18. Ne2 {[%emt 0:02:40]} Nf6 {[%emt 0:01:21]} 19. Nf4 $36 {[%emt 0:05:21][%mdl 2048] White has good play.} Qg5 {[%emt 0:01:37]} 20. b3 {[%emt 0:04:22]} Nh5 {[%emt 0:03:28]} 21. Nd3 {[%emt 0:03:00]} Rf6 {[%emt 0:02:02]} 22. Ne5 {[%emt 0:06:05]} Rh6 {[%emt 0:01:26]} 23. Nf1 {[%emt 0:03:07]} Ne4 {[%emt 0:03:47]} 24. Rab1 {[%emt 0:01:19]} Nhf6 {[%emt 0:04:36] [#]} (24... Qe7 $11 {keeps the balance.}) 25. Ba5 {[%emt 0:03:50]} (25. cxd5 $1 $16 exd5 26. Nxc6 bxc6 27. Qxc6) 25... Bd7 {[%emt 0:03:00]} 26. Bc7 {[%emt 0:02:55]} Rc8 {[%emt 0:03:21]} 27. Ba5 {[%emt 0:01:10]} Be8 {[%emt 0:00:45]} 28. Qe2 {[%emt 0:02:02]} Qh5 {[%emt 0:00:50]} 29. Nd3 {[%emt 0:00:28]} Ng5 {[%emt 0:00:48]} 30. Nf4 {[%emt 0:01:36]} Qf7 {[%emt 0:01:28]} 31. Be1 {[%emt 0:03:02]} Nfe4 {[%emt 0:00:10]} 32. Nd2 {[%emt 0:02:26]} Nf6 {[%emt 0:01:57]} 33. Nf1 {[%emt 0:01:01]} Qd7 {[%emt 0:00:17]} 34. Nd2 {[%emt 0:00:49]} Bf7 {[%emt 0:00:24]} 35. Nd3 {[%emt 0:00:46]} Nh3+ {[%emt 0:01:23]} 36. Kh1 {[%emt 0:00:54]} Qe8 {[%emt 0:00:56]} 37. Ne5 {[%emt 0:01:18]} Kh8 {[%emt 0:00:48]} (37... Ng5 $11) 38. b4 $14 {[%emt 0:00:58]} Nd7 {[%emt 0:02:56]} 39. Nd3 {[%emt 0:01:38]} (39. f4 $16) 39... e5 $11 {[%emt 0:00:28]} 40. dxe5 {[%emt 0:01:49]} Nxe5 {[%emt 0:00:18]} (40... dxc4 {seems wilder.} 41. Nxc4 Bxc4 42. Rxc4 Qh5) 41. cxd5 {[%emt 0:06:57]} (41. Nxe5 {is more complex.} Qxe5 42. b5 dxc4 43. Nxc4 Qe8 44. Na5) 41... Bxd5 {[%emt 0:01:23]} (41... Nxd3 {feels hotter.} 42. Qxd3 Rd8 43. Qxf5 Rf6) 42. Bxd5 {[%emt 0:00:42]} cxd5 {[%emt 0:07:07]} (42... Nxd3 $5 43. Qxd3 Qh5 $11) 43. Nxe5 {[%emt 0:07:12]} Bxe5 {[%emt 0:00:31]} 44. b5 {[%emt 0:02:15] Inhibits Rhc6.} (44. Qd3 $11 Rd8 45. Qxf5) 44... Bc3 {[%emt 0:03:52]} (44... Rd8 $15 45. Qd3 Qh5) 45. Qd3 {[%emt 0:01:59][%csl LRc3,LRd5,LRf5]} Bxd2 {[%emt 0:10:09] [#]} (45... d4 $1 $11) 46. Rxc8 $2 {[%emt 0:00:25]} (46. Qd4+ $1 $18 Kg8 47. Qxd5+ (47. Bxd2 Rxc1+ 48. Rxc1 Nxf2+ 49. Kg2 Qe4+ 50. Qxe4 Nxe4 $11) 47... Kh8 48. Rxc8 (48. Bxd2 Rxc1+ 49. Rxc1 Qe4+ 50. Qxe4 Nxf2+ 51. Kg2 Nxe4 $16) 48... Qxc8 49. Bxd2 (49. Qxd2 Qc4 $16)) 46... Qxc8 {[%emt 0:00:07]} 47. Qd4+ {[%emt 0:00:48]} Kg8 {[%emt 0:00:26]} 48. Bxd2 {[%emt 0:03:00] aiming for Bc3.} Nxf2+ {[%emt 0:03:41]} 49. Kg2 {[%emt 0:00:20]} Ne4 {[%emt 0:00:18] Repels Bc3. Threatening ...Qc4. The board is on fire.} 50. Qxd5+ {[%emt 0:01:22]} Qe6 {[%emt 0:00:33]} 51. Qd8+ {[%emt 0:04:07]} ({Better is} 51. Qxe6+ $1 $11 Rxe6 52. Bb4) 51... Kf7 {[%emt 0:00:44] Black is more active.} ({Black should try} 51... Kg7 $1 $15 52. Rc1 Rf6 53. Rc7+ Rf7) 52. Rc1 {[%emt 0:03:47]} Qd6 $2 {[%emt 0:03:49][%mdl 8192]} (52... Rf6 $11 {and Black is okay.}) 53. Rc7+ $18 {[%emt 0:00:27]} Ke6 $2 {[%emt 0:01:47]} (53... Kg6 54. Qxd6+ Nxd6) 54. Qe8+ $2 {[%emt 0:01:44]} (54. Qg8+ $18 {is the precise move to win.} Ke5 55. Qg7+ (55. Rxb7 $2 Qxd2+ 56. Kg1 Qxh2+ 57. Kf1 Qf2#) 55... Rf6 56. Re7+ Kd5 57. Rd7 Nxd2 58. Rxd6+ Rxd6 59. Qxb7+ (59. Qxh7 Ke6 $18) 59... Ke6 60. h3 (60. Qxh7 Nf3 $11)) 54... Kf6 $16 {[%emt 0:00:36]} 55. Rd7 $2 {[%emt 0:02:31][%mdl 8192] [#]} (55. Rxb7 $2 Qxd2+ 56. Kg1 Qf2+ 57. Kh1 Nxg3#) (55. Bc3+ $16 Kg5 56. Qg8+ (56. Rxb7 Rxh2+ 57. Kf1 Qd1+ 58. Be1 Rf2+ 59. Kg1 Qxe1#) 56... Kh5 57. Rg7 (57. Rxb7 $2 Nxc3 58. Qe8+ Qg6 $19)) 55... Rxh2+ $3 {[%emt 0:01:05][%mdl 512] Black mates.} 56. Kf1 {[%emt 0:01:04]} Nxd2+ {[%emt 0:00:15]} 57. Ke1 {[%emt 0:00:21]} Qxg3+ {[%emt 0:02:33]} 58. Kd1 {[%emt 0:00:11]} Qg1+ {[%emt 0:00:26]} 59. Kc2 {[%emt 0:00:16]} Qb1+ {[%emt 0:00:47]} 60. Kc3 {[%emt 0:00:16]} Qc1+ {[%emt 0:01:02]} ({Inferior is} 60... Qxa2 61. Qe7+ Kg6 62. Rd6+ (62. Rxb7 $2 {leads to mate.} Qc4+ 63. Kb2 Nf3+ 64. Kb1 Qf1#) (62. Qd6+ Qe6 63. Qxe6+ Kg5 64. Qe7+ Kh5 65. Qxh7+ Kg5 66. Rg7+ Kf6 67. Rf7+ Ke6 68. Qxf5+ Kd6 69. Rd7#) (62. Rxb7 $2 Qc4+ 63. Kb2 Nf3+ 64. Kb1 Qf1#) (62. Qd6+ Qe6 63. Qxe6+ Kg5 64. Qe7+ Kh5 65. Qxh7+ Kg5 66. Rg7+ Kf6 67. Rf7+ Ke6 68. Qxf5+ Kd6 69. Rd7#)) 61. Kb4 {[%emt 0:01:04]} Qc4+ {[%emt 0:00:32]} 62. Ka5 {[%emt 0:00:22]} Qxa2+ {[%emt 0:00:36]} 63. Kb4 {[%emt 0:00:13]} Qc4+ {[%emt 0:00:20] Weighted Error Value: White=0.43/Black=0.32.  Loses game:     	White=1     	Black=2      Missed win:     	White=2     	---        Mistake:       	White=4     	Black=5      Inaccurate:     	White=5     	Black=6      OK:         	White=16    	Black=9      Best:        	White=2     	Black=4      Brilliant:      	---       	Black=1} 0-1

[Event "LEM Niedersachsen-Meister 2025"]
[Site "Verden"]
[Date "2025.01.02"]
[Round "2.14"]
[White "Meiwes, Thore"]
[Black "Gaertner, Alessandro"]
[Result "1-0"]
[ECO "E99"]
[WhiteElo "2120"]
[BlackElo "1970"]
[Annotator "TA"]
[PlyCount "173"]
[EventDate "2024.12.27"]
[EventType "swiss"]
[EventCountry "GER"]
[SourceTitle "playchess.com"]
[Source "ChessBase"]
[SourceQuality "1"]
[TimeControl "40/5400+30:1800+30"]

{[%evp 54,173,87,72,249,232,298,293,274,160,162,159,193,228,255,200,328,289,279,284,283,270,333,207,270,265,424,416,374,0,342,386,436,428,427,414,437,433,395,286,247,200,249,241,289,315,320,307,300,295,427,415,415,425,455,448,560,539,853,452,461,483,483,471,452,415,620,622,636,628,902,897,857,814,1150,1023,1096,907,992,977,766,383,663,654,963,904,856,965,962,853,1562,1230,1171,1166,29980,29981,29981,29974,29974,29975,29971,29974,29980,29982,29985,29986,29986,29987,29987,29988,29988,29988,29988,29986,29987,29988,29993,29994,29991,29991,29991,29992]} 1. d4 {[%emt 0:00:01]} Nf6 {[%emt 0:00:20]} 2. Nf3 {[%emt 0:00:04]} g6 {[%emt 0:00:24]} 3. c4 {[%emt 0:00:05]} Bg7 {[%emt 0:00:04]} 4. Nc3 {[%emt 0:00:05]} O-O {[%emt 0:00:29]} 5. e4 {[%emt 0:00:04]} d6 {[%emt 0:00:05]} 6. Be2 {[%emt 0:00:03]} e5 {[%emt 0:00:12]} 7. O-O {[%emt 0:00:05]} Nc6 {[%emt 0:00:13]} 8. d5 {[%emt 0:00:05]} Ne7 {[%emt 0:00:06]} 9. Ne1 {[%emt 0:00:03]} Nd7 {[%emt 0:00:19]} 10. f3 {[%emt 0:00:04]} a5 {[%emt 0:00:51]} 11. Be3 {[%emt 0:01:05]} f5 {[%emt 0:01:18]} 12. g4 {[%emt 0:00:09]} Nf6 {[%emt 0:05:41]} 13. Nd3 {[%emt 0:00:24]} b6 {[%emt 0:14:12]} 14. a3 {[%emt 0:00:36]} h6 {[%emt 0:12:41]} 15. h4 {[%emt 0:00:34]} Bd7 {[%emt 0:02:04]} 16. b3 {[%emt 0:00:38]} Qc8 {[%emt 0:02:56]} 17. Nf2 {[%emt 0:00:16]} f4 {[%emt 0:05:03]} 18. Bd2 {[%emt 0:01:15]} Nh7 {[%emt 0:07:18]} 19. Nd3 {[%emt 0:02:26]} Qd8 {[%emt 0:08:14]} 20. Be1 {[%emt 0:05:07]} Kh8 {[%emt 0:08:36]} 21. Kg2 {[%emt 0:02:27]} Ng8 {[%emt 0:02:45]} 22. Rh1 {[%emt 0:04:45]} Rf7 {[%emt 0:02:55]} 23. Bf2 {[%emt 0:05:02]} Qe7 {[%emt 0:06:56]} 24. b4 {[%emt 0:04:41]} Raf8 {[%emt 0:03:26]} 25. Kg1 {[%emt 0:05:56]} Ngf6 {[%emt 0:05:41]} 26. Bf1 {[%emt 0:02:19]} Kg8 {[%emt 0:06:22]} 27. c5 {[%emt 0:05:38]} bxc5 {[%emt 0:00:39]} 28. bxc5 {[%emt 0:00:11]} h5 $2 {[%emt 0:03:13]} (28... Nxg4 $16 29. fxg4 f3) 29. g5 $18 {[%emt 0:06:38]} Ng4 30. fxg4 {[%emt 0:00:25]} hxg4 {[%emt 0:01:35]} 31. cxd6 {[%emt 0:01:48]} (31. c6 $18 Bc8 32. Be1) 31... cxd6 $16 {[%emt 0:00:10]} 32. Be1 {[%emt 0:08:47]} Bc8 {[%emt 0:00:56]} 33. Nb5 {[%emt 0:03:27]} g3 {[%emt 0:00:35]} 34. Qf3 {[%emt 0:04:59]} (34. Bxa5 $6 f3 $16) 34... Ba6 {[%emt 0:00:33]} (34... Bh6 {might work better.} 35. gxh6 Nf6) 35. a4 $18 {[%emt 0:01:00]} Rb8 {[%emt 0:00:32]} 36. Bh3 {[%emt 0:00:34]} Nf8 {[%emt 0:00:21]} 37. Kg2 {[%emt 0:05:51]} Bb7 {[%emt 0:00:41]} 38. Nc3 {[%emt 0:03:32]} Qc7 {[%emt 0:00:28]} 39. Rc1 {[%emt 0:00:59]} Qb6 {[%emt 0:00:30]} (39... Qc4 $142 40. Rb1 Rd8) 40. Nb5 $18 {[%emt 0:01:22]} Re8 {[%emt 0:00:24]} 41. Nc3 $2 {[%emt 0:33:19]} (41. Bxg3 $18 fxg3 42. Qxg3) 41... Rc7 $2 {[%emt 0:30:38][%mdl 8192]} (41... Rb8 $1 $11 {and Black is okay.} 42. Nb5 Qd8) 42. Bd2 $18 {[%emt 0:05:17]} Ba6 {[%emt 0:00:00]} 43. Nb5 {[%emt 0:00:00]} Bxb5 {[%emt 0:00:00]} 44. axb5 {[%emt 0:00:00]} Rxc1 {[%emt 0:00:00]} 45. Rxc1 {[%emt 0:00:00]} (45. Nxc1 Qxb5 46. Bg4 Qb6 $16) 45... Qxb5 {[%emt 0:00:00]} 46. Ne1 {[%emt 0:00:00]} a4 {[%emt 0:00:00]} 47. Qf1 {[%emt 0:00:00]} Qb2 {[%emt 0:00:00]} 48. Rc2 {[%emt 0:00:00]} Qd4 {[%emt 0:00:00]} 49. Qe2 {[%emt 0:00:00]} Rb8 {[%emt 0:00:00]} 50. Nf3 {[%emt 0:00:00]} Qa7 {[%emt 0:00:00]} 51. Bc1 {[%emt 0:00:00]} a3 {[%emt 0:02:02]} (51... Rb3 $142 52. Be6+ Nxe6 53. dxe6 Bf8) 52. Ra2 $18 {[%emt 0:00:00]} Rb3 {[%emt 0:02:25] [#]} 53. Qc2 $1 {[%emt 0:00:50]} (53. Qc4 $2 Rb2+ 54. Bxb2 (54. Rxb2 $2 axb2 55. Bxb2 Qf2+ 56. Kh1 Qxf3+ 57. Bg2 Qg4 $19) 54... Qf2+ 55. Kh1 axb2 $19) 53... Qb6 {[%emt 0:01:28]} 54. Rxa3 {[%emt 0:00:41]} Rb1 {[%emt 0:00:20]} 55. Ra2 {[%emt 0:00:31]} Qb4 {[%emt 0:00:45]} 56. Ba3 {[%emt 0:00:53]} Qb5 {[%emt 0:00:30]} 57. Qe2 $1 {[%emt 0:00:51]} (57. Bxd6 $2 Qf1#) 57... Qb6 {[%emt 0:00:28]} 58. Rb2 {[%emt 0:00:50]} Rxb2 {[%emt 0:00:17]} 59. Bxb2 {[%emt 0:00:41]} (59. Qxb2 Qa6 60. Bg4 Kh7 $18) 59... Qa7 {[%emt 0:00:35]} (59... Qb3 $142 60. h5 gxh5) 60. Nd2 $18 {[%emt 0:04:09]} Nd7 {[%emt 0:00:30]} 61. Be6+ {[%emt 0:00:38]} Kf8 {[%emt 0:00:26]} 62. Bxd7 {[%emt 0:01:30]} Qxd7 {[%emt 0:00:04]} 63. Ba3 {[%emt 0:00:57]} Kf7 {[%emt 0:00:20]} 64. Nc4 {[%emt 0:02:20]} Bf8 {[%emt 0:00:02]} 65. h5 {[%emt 0:05:38]} Be7 {[%emt 0:01:32]} 66. h6 {[%emt 0:00:16]} Kg8 {[%emt 0:00:15]} 67. Qd1 {[%emt 0:02:26]} Qa7 $2 {[%emt 0:00:43]} (67... Kh7 68. Qe2 Qb5) 68. Qc2 $18 {[%emt 0:00:42]} (68. Bxd6 $2 {gets mated.} Qf2+ 69. Kh3 Qh2+ 70. Kg4 Qh5#) 68... f3+ {[%emt 0:00:41]} 69. Kxf3 {[%emt 0:01:51]} ({Less strong is} 69. Kxg3 Qg1+ 70. Kxf3 Qf1+ 71. Qf2 Qxc4 $11) 69... Bxg5 {[%emt 0:00:37]} 70. Bxd6 {[%emt 0:01:03]} Qg1 {[%emt 0:00:22]} 71. Bxe5 {[%emt 0:02:54]} g2 {[%emt 0:00:38]} 72. Qxg2 {[%emt 0:00:46]} Qd1+ {[%emt 0:00:12]} 73. Kg3 {[%emt 0:01:44]} Qd3+ {[%emt 0:00:43]} 74. Kh2 {[%emt 0:00:08]} Qxc4 {[%emt 0:00:26]} 75. Qxg5 {[%emt 0:01:15]} Qe2+ {[%emt 0:00:08]} 76. Qg2 {[%emt 0:02:07]} Qh5+ {[%emt 0:00:15]} 77. Kg1 {[%emt 0:00:05]} Qd1+ {[%emt 0:00:07]} 78. Kf2 {[%emt 0:00:17]} Kh7 {[%emt 0:00:39]} 79. Bf4 {[%emt 0:00:21]} Qc2+ {[%emt 0:00:24]} 80. Kg3 {[%emt 0:00:15]} Qc3+ {[%emt 0:00:11]} 81. Qf3 {[%emt 0:00:07]} Qe1+ {[%emt 0:00:07]} 82. Kg4 {[%emt 0:00:17]} Qg1+ {[%emt 0:00:24]} 83. Qg3 {[%emt 0:00:41]} Qd1+ {[%emt 0:00:07]} 84. Kg5 {[%emt 0:00:15]} Qe2 {[%emt 0:00:58]} 85. Be3 {[%emt 0:00:23]} Qc2 {[%emt 0:00:56]} 86. Kf6 {[%emt 0:01:23]} Qb2+ {[%emt 0:00:41]} 87. Qe5 {[%emt 0:00:13]} 1-0

[Event "LEM Niedersachsen-Meister 2025"]
[Site "Verden"]
[Date "2025.01.02"]
[Round "2.15"]
[White "Garbuszus, Juergen"]
[Black "de Vries, Carsten"]
[Result "1/2-1/2"]
[ECO "D37"]
[WhiteElo "2068"]
[BlackElo "1898"]
[Annotator "NA RC"]
[PlyCount "73"]
[EventDate "2024.12.27"]
[EventType "swiss"]
[EventCountry "GER"]
[SourceTitle "playchess.com"]
[Source "ChessBase"]
[SourceQuality "1"]
[TimeControl "40/5400+30:1800+30"]

1. d4 {[%emt 0:00:01]} d5 {[%emt 0:00:05]} 2. c4 {[%emt 0:00:05]} e6 {[%emt 0:00:05]} 3. Nc3 {[%emt 0:00:07]} Nf6 {[%emt 0:00:17]} 4. Nf3 {[%emt 0:00:05]} a6 {[%emt 0:00:18]} 5. cxd5 {[%emt 0:03:57]} exd5 {[%emt 0:00:09]} 6. Bg5 {[%emt 0:00:18]} Be6 {[%emt 0:04:30]} 7. e3 {[%emt 0:00:34]} h6 {[%emt 0:01:17]} 8. Bh4 {[%emt 0:00:15]} Be7 {[%emt 0:02:48]} 9. Bd3 {[%emt 0:00:55]} Nbd7 {[%emt 0:02:59]} 10. Rc1 {[%emt 0:01:23]} O-O {[%emt 0:00:25]} 11. O-O {[%emt 0:00:04]} Rc8 {[%emt 0:02:42]} 12. Bb1 {[%emt 0:05:08]} c5 {[%emt 0:21:01]} 13. dxc5 {[%emt 0:07:55]} Nxc5 {[%emt 0:02:32]} 14. Nd4 {[%emt 0:01:49]} Qd7 {[%emt 0:10:33]} 15. f3 {[%emt 0:06:38]} b5 {[%emt 0:01:33]} 16. b4 {[%emt 0:03:55]} Nb7 {[%emt 0:00:12]} 17. a3 {[%emt 0:01:51]} Nd6 {[%emt 0:47:34]} 18. Qd3 {[%emt 0:00:21]} g6 {[%emt 0:00:00]} 19. Nxe6 {[%emt 0:04:28]} Qxe6 {[%emt 0:00:00]} 20. Bxf6 {[%emt 0:00:06]} Bxf6 {[%emt 0:00:00]} 21. Nxd5 {[%emt 0:00:09]} Bb2 {[%emt 0:00:00]} 22. Rc7 {[%emt 0:13:07]} Nf5 {[%emt 0:00:00]} 23. e4 {[%emt 0:01:37]} Rxc7 {[%emt 0:00:00]} 24. exf5 {[%emt 0:00:55]} Qd6 {[%emt 0:00:00]} 25. fxg6 {[%emt 0:05:44]} Rd8 {[%emt 0:00:00]} 26. g7 {[%emt 0:04:18]} Bxg7 {[%emt 0:00:00]} 27. Qh7+ {[%emt 0:00:01]} Kf8 {[%emt 0:00:00]} 28. Nxc7 {[%emt 0:00:04]} Qxc7 {[%emt 0:00:00]} 29. Re1 {[%emt 0:39:10]} Qc3 {[%emt 0:00:00]} 30. Qe4 {[%emt 0:00:00]} Bf6 {[%emt 0:00:53]} 31. Ba2 {[%emt 0:00:00]} Qxa3 {[%emt 0:03:27]} 32. Bd5 {[%emt 0:00:00]} Qc3 {[%emt 0:00:37]} 33. Kf1 {[%emt 0:00:00]} Qd4 {[%emt 0:00:56]} 34. Bb7 {[%emt 0:00:00]} Qxe4 {[%emt 0:00:17]} 35. fxe4 {[%emt 0:00:00]} Be5 {[%emt 0:00:24]} 36. Bxa6 {[%emt 0:00:00]} Bxh2 {[%emt 0:00:22]} 37. Bxb5 {[%emt 0:00:00]} 1/2-1/2